bitfinex/quotes_ETHUSD_20251011
["timestamp","ask_amount","ask_price","bid_price","bid_amount"]
[1760171577796,0.2061,3803.5,3803.4,0.002]
[1760171579381,4.75525735,3803.5,3803.4,0.002]
[1760171591746,4.88645735,3803.5,3803.4,0.002]
[1760171592260,4.75525735,3803.5,3803.4,0.002]
[1760171595890,2.62943388,3803.1,3803.0,0.002]
[1760171596048,18.47432027,3803.1,3803.0,0.002]
[1760171596248,18.57332027,3803.1,3803.0,0.002]
[1760171596886,2.019,3803.1,3803.0,0.002]
[1760171597058,0.099,3803.1,3803.0,0.002]
[1760171597362,0.1071,3803.5,3803.0,0.002]
[1760171597873,0.107,3803.8,3803.2,0.6336]
[1760171598071,0.107,3803.8,3803.1,3.26303388]
[1760171598292,0.107,3803.8,3803.0,0.6356]
[1760171598461,2.62943388,3803.1,3803.0,0.6356]
[1760171598661,2.72853388,3803.1,3803.0,0.002]
[1760171598884,4.64853388,3803.1,3803.0,0.002]
[1760171603307,18.57342027,3803.1,3803.0,0.002]
[1760171605527,2.62971046,3802.7,3802.6,0.002]
[1760171605728,4.54998711,3802.3,3802.2,0.002]
[1760171605929,2.63067897,3801.3,3801.0,0.002]
[1760171606127,4.77691739,3801.1,3801.0,0.002]
[1760171606534,4.87591739,3801.1,3801.0,0.002]
[1760171608124,4.55157894,3800.0,3799.1,32.7355303]
[1760171608326,2.019,3800.0,3799.1,32.7355303]
[1760171608539,4.65057894,3800.0,3799.2,2.6321306]
[1760171609038,2.019,3800.0,3799.1,32.7355303]
[1760171609210,4.65057894,3800.0,3799.1,32.7355303]
[1760171612650,2.63213308,3799.2,3799.1,32.7355303]
[1760171612852,18.79881947,3799.2,3799.1,32.7355303]
[1760171613558,18.79881947,3799.2,3799.1,23.98086276]
[1760171616045,18.93001947,3799.2,3799.1,23.98086276]
[1760171616230,18.79881947,3799.2,3799.1,23.98086276]
[1760171618041,18.79881947,3799.2,3799.1,23.98286276]
[1760171619450,19.0360599,3799.2,3799.1,16.92321333]
[1760171620233,4.87393308,3799.2,3799.1,16.92321333]
[1760171622930,4.87393308,3799.2,3799.1,9.8635639]
[1760171624039,4.87393308,3799.2,3799.1,1e-08]
[1760171624966,2.63241023,3798.8,3798.7,0.002]
[1760171625252,2.63241023,3798.8,3798.5,0.03570609]
[1760171625253,4.55254883,3798.6,3798.5,0.03570609]
[1760171625767,4.65154883,3798.6,3798.5,0.03570609]
[1760171625956,4.65154883,3798.6,3798.5,0.66930609]
[1760171625957,2.73154883,3798.6,3798.5,0.66930609]
[1760171626130,2.73154883,3798.6,3798.5,0.03570609]
[1760171626862,4.65154883,3798.6,3798.5,0.03570609]
[1760171629953,0.225,3798.7,3798.6,0.6336]
[1760171630655,0.324,3798.7,3798.6,0.6336]
[1760171631769,14.15809475,3799.9,3798.6,0.6336]
[1760171631770,0.3218,3799.4,3798.6,0.6336]
[1760171632090,1.92,3799.1,3798.6,0.6336]
[1760171632375,0.099,3799.0,3798.6,0.6336]
[1760171632578,0.225,3799.2,3798.6,0.6336]
[1760171632777,2.95338849,3800.0,3799.2,0.6336]
[1760171632965,0.3218,3800.0,3799.2,0.6336]
[1760171633168,0.3218,3800.0,3799.1,0.6336]
[1760171633369,2.2418,3800.0,3799.3,0.6336]
[1760171633580,4.8733818,3800.0,3799.3,0.6336]
[1760171633778,0.3218,3800.0,3799.3,0.6336]
[1760171634083,1.92,3799.6,3798.6,3.26614883]
[1760171634266,1.92,3799.6,3799.0,0.6336]
[1760171634469,0.324,3799.5,3799.0,0.6336]
[1760171634665,0.099,3799.4,3799.0,0.6336]
[1760171634866,0.099,3799.4,3798.9,2.63232222]
[1760171634867,0.099,3799.4,3798.9,0.6336]
[1760171635173,2.73107239,3799.3,3798.5,0.03570609]
[1760171635376,0.099,3799.3,3798.5,0.03570609]
[1760171635578,0.099,3799.3,3798.8,0.6336]
[1760171635775,0.099,3799.2,3798.8,0.6336]
[1760171635984,0.225,3799.5,3798.8,0.6336]
[1760171636150,0.225,3799.5,3799.2,0.6336]
[1760171636348,0.2238,3799.8,3799.5,0.6336]
[1760171636594,0.2238,3799.8,3799.3,0.6336]
[1760171636595,0.1002,3799.7,3799.3,0.6336]
[1760171636757,0.3218,3800.2,3799.6,0.1312]
[1760171636951,2.95325392,3800.2,3800.1,0.7648]
[1760171637260,4.87324045,3800.2,3800.1,0.7648]
[1760171637764,0.099,3800.6,3800.2,0.6336]
[1760171637984,2.019,3800.5,3800.2,0.6336]
[1760171638181,2.019,3800.5,3799.7,2.63178233]
[1760171638182,0.2261,3801.1,3800.5,0.1312]
[1760171638359,0.2261,3801.1,3799.8,0.6336]
[1760171638360,2.63129653,3800.5,3799.8,0.6336]
[1760171638686,1.92,3800.3,3799.7,0.6336]
[1760171638900,0.001,3800.3,3800.2,0.7648]
[1760171639390,0.001,3800.3,3800.2,3.39624045]
[1760171640254,0.001,3800.3,3800.2,0.7648]
[1760171640455,2.73142007,3800.3,3799.0,0.002]
[1760171640667,2.73138063,3800.3,3799.0,0.002]
[1760171640988,2.73138063,3800.3,3799.2,0.6336]
[1760171640989,0.1,3800.3,3799.2,0.6336]
[1760171641176,2.73139014,3800.3,3799.5,0.6336]
[1760171641356,1.92,3800.0,3799.5,0.6336]
[1760171641686,2.63239014,3800.3,3800.0,0.6336]
[1760171641687,0.001,3800.3,3800.0,0.6336]
[1760171641987,0.001,3800.3,3799.5,0.4593]
[1760171642190,0.1,3800.3,3799.6,0.6336]
[1760171642375,0.099,3800.2,3799.6,0.6336]
[1760171642576,0.099,3800.2,3799.4,3.26556616]
[1760171642777,0.099,3800.1,3799.1,2.63213739]
[1760171642979,0.099,3800.0,3799.0,0.002]
[1760171643194,2.63220236,3799.1,3799.0,0.002]
[1760171643357,1.92,3799.1,3799.0,1.232]
[1760171643687,0.099,3799.6,3799.0,1.232]
[1760171643890,2.63199458,3799.4,3799.0,1.232]
[1760171644100,0.099,3799.3,3799.0,1.232]
[1760171644299,0.099,3799.2,3799.0,1.232]
[1760171644491,0.099,3799.1,3799.0,1.232]
[1760171644690,0.099,3799.1,3799.0,1.8656]
[1760171647093,2.73120236,3799.1,3799.0,1.232]
[1760171647281,4.65120236,3799.1,3799.0,1.232]
[1760171647670,4.65120236,3799.1,3799.0,2.462]
[1760171648408,1.92,3799.1,3799.0,2.462]
[1760171648575,1.92,3799.1,3799.0,3.0956]
[1760171648911,2.019,3799.1,3799.0,3.0956]
[1760171649590,4.65120236,3799.1,3799.0,3.0956]
[1760171649910,4.65120236,3799.1,3799.0,3.692]
[1760171650065,82.86505436,3799.1,3799.0,3.692]
[1760171651703,82.86505436,3799.1,3799.0,4.922]
[1760171651910,1.92,3799.0,3795.5,2.63466896]
[1760171652075,1.92,3797.2,3795.6,0.4593]
[1760171652273,2.0198,3797.2,3796.3,0.6336]
[1760171652596,2.73332163,3797.2,3796.4,0.02304998]
[1760171652905,0.0998,3797.2,3796.4,0.65664998]
[1760171653111,1.92,3797.0,3796.4,0.65664998]
[1760171653311,1.92,3796.6,3794.6,2.63532388]
[1760171653470,2.63352115,3797.2,3795.0,0.4593]
[1760171653675,2.63352115,3797.2,3796.4,0.6336]
[1760171653676,1.92,3797.1,3796.4,0.6336]
[1760171654586,0.0998,3797.2,3796.6,0.6336]
[1760171654984,0.0998,3797.2,3796.8,0.6336]
[1760171655179,0.0998,3797.2,3796.9,0.02633727]
[1760171655695,4.55324823,3797.6,3796.9,0.02633727]
[1760171655696,0.0998,3797.1,3796.9,0.02633727]
[1760171655897,0.0998,3797.1,3796.7,0.6336]
[1760171656202,0.0998,3797.1,3796.8,0.02633796]
[1760171656402,2.63282369,3798.3,3796.5,0.6336]
[1760171656579,2.0198,3797.5,3796.9,0.6336]
[1760171656781,2.0198,3797.5,3797.0,0.02633656]
[1760171656984,0.0998,3798.4,3797.0,0.02633656]
[1760171657181,0.0998,3798.4,3797.5,0.6336]
[1760171657182,2.73254883,3798.4,3797.5,0.6336]
[1760171657390,2.63281476,3798.3,3797.5,0.6336]
[1760171657798,0.0998,3798.4,3797.1,0.4593]
[1760171658011,0.0998,3798.4,3797.9,0.6336]
[1760171658306,0.0998,3798.3,3797.9,0.6336]
[1760171658504,0.0998,3798.3,3797.8,2.6330983]
[1760171658505,1.92,3798.3,3797.8,0.6336]
[1760171658677,0.0998,3798.2,3797.8,0.6336]
[1760171658873,1.92,3798.7,3797.9,3.26660817]
[1760171659079,0.0998,3798.6,3797.5,0.6336]
[1760171659399,0.0998,3798.6,3796.8,2.63373129]
[1760171659400,0.0998,3798.6,3798.0,0.6336]
[1760171659606,0.1834,3798.9,3798.0,0.6336]
[1760171659900,1.92,3798.8,3798.0,3.26650546]
[1760171660113,0.2832,3798.9,3797.9,0.6336]
[1760171660402,2.6324683,3798.8,3797.9,0.6336]
[1760171660698,2.63264271,3798.5,3798.1,0.6336]
[1760171660905,0.0998,3798.4,3797.7,0.6336]
[1760171661090,0.0998,3798.4,3797.9,0.6336]
[1760171661297,2.81580683,3798.9,3798.1,0.6336]
[1760171661298,0.1834,3798.9,3798.1,0.6336]
[1760171661497,4.55229026,3799.0,3798.3,0.6336]
[1760171661913,4.55229026,3799.0,3798.9,0.7648]
[1760171661914,1.92,3799.0,3798.9,0.7648]
[1760171662208,4.65297165,3799.0,3798.9,0.7648]
[1760171662375,2.0207,3799.0,3798.9,0.7648]
[1760171662777,2.0207,3799.0,3798.9,0.6336]
[1760171663390,1.92,3799.0,3798.9,0.6336]
[1760171663593,78.214852,3799.1,3798.9,0.6336]
[1760171663800,78.214852,3799.1,3799.0,1.8636]
[1760171664781,78.214852,3799.1,3799.0,4.49587165]
[1760171665323,78.214852,3799.1,3799.0,4.96727165]
[1760171665904,78.214852,3799.1,3799.0,6.19727165]
[1760171666612,78.214852,3799.1,3799.0,5.72587165]
[1760171667018,78.214852,3799.1,3799.0,6.19727165]
[1760171667807,78.214852,3799.1,3799.0,5.72587165]
[1760171668197,78.214852,3799.1,3799.0,6.95587165]
[1760171669008,78.214852,3799.1,3799.0,7.42727165]
[1760171670617,78.214852,3799.1,3799.0,8.65727165]
[1760171672212,78.214852,3799.1,3799.0,9.88727165]
[1760171672906,78.214852,3799.1,3799.0,10.01847165]
[1760171674591,78.214852,3799.1,3799.0,11.24847165]
[1760171675711,78.214852,3799.1,3799.0,13.16847165]
[1760171676387,78.214852,3799.1,3799.0,14.39847165]
[1760171676791,77.664852,3799.1,3799.0,14.39847165]
[1760171676991,0.001,3799.5,3799.4,3.26559452]
[1760171677227,0.001,3800.3,3800.2,5.18504045]
[1760171677521,2.73022451,3802.4,3801.5,0.6336]
[1760171677690,2.73022451,3802.4,3801.3,2.63067451]
[1760171677691,0.1003,3802.4,3801.3,0.6336]
[1760171677890,0.1003,3802.4,3801.4,0.02630609]
[1760171678093,2.73022179,3802.4,3801.3,0.6336]
[1760171678323,2.63008598,3802.2,3801.3,0.6336]
[1760171678889,2.62991231,3802.5,3801.4,0.6336]
[1760171679126,2.63000986,3802.3,3801.4,0.6336]
[1760171679427,1.92,3802.3,3801.3,0.6336]
[1760171679802,1.92,3802.0,3801.3,0.6336]
[1760171680133,0.3273,3801.9,3800.2,0.4714]
[1760171680327,0.3273,3801.9,3800.2,3.10282809]
[1760171680328,1.92,3801.7,3800.2,3.10282809]
[1760171680530,2.63076916,3801.2,3800.2,3.10282809]
[1760171680741,2.63083174,3801.1,3800.2,0.4714]
[1760171680899,0.099,3801.3,3800.2,3.10278683]
[1760171681102,2.63059158,3801.5,3800.3,0.6336]
[1760171681400,0.099,3801.4,3799.5,0.4714]
[1760171681617,0.3273,3801.9,3799.5,0.4714]
[1760171681817,1.92,3801.7,3800.6,0.6336]
[1760171682099,0.099,3801.6,3800.4,0.6336]
[1760171682306,2.63073214,3801.3,3800.4,0.6336]
[1760171682640,0.099,3801.3,3800.1,2.63144072]
[1760171682935,2.019,3801.3,3800.4,2.63130067]
[1760171683238,0.099,3801.3,3800.5,0.6336]
[1760171683437,2.63114696,3800.7,3799.4,3.10337939]
[1760171683636,1.92,3800.6,3799.0,11.07]
[1760171683834,2.63132757,3800.4,3799.1,2.63220236]
[1760171684027,2.63132757,3800.4,3799.4,2.63196836]
[1760171684520,4.65016378,3800.6,3799.3,2.63206232]
[1760171684838,4.65016378,3800.6,3799.1,2.63218546]
[1760171685208,4.65016378,3800.6,3799.3,0.6336]
[1760171685209,2.63136732,3800.4,3799.3,0.6336]
[1760171685409,2.63136732,3800.4,3799.3,3.26560557]
[1760171685908,2.63136732,3800.4,3799.5,0.6336]
[1760171686125,2.63137861,3800.3,3799.5,0.6336]
[1760171686616,2.63128821,3800.5,3799.5,0.6336]
[1760171686822,2.63130196,3800.4,3799.2,0.6336]
[1760171687018,0.099,3800.6,3799.1,3.10079312]
[1760171687019,2.63138098,3800.3,3799.4,0.6336]
[1760171687231,1.92,3800.2,3799.4,3.26558453]
[1760171687427,1.92,3800.3,3799.6,0.6336]
[1760171687633,0.099,3800.6,3800.3,0.6336]
[1760171687832,2.63073662,3801.3,3800.4,0.47021301]
[1760171688015,1.92,3801.2,3800.5,0.6336]
[1760171688222,1.92,3801.2,3800.2,0.6336]
[1760171688458,2.63096177,3800.9,3800.2,0.6336]
[1760171688644,2.63096177,3800.9,3800.1,0.6336]
[1760171689032,2.63103323,3800.8,3800.1,0.6336]
[1760171689230,2.63103323,3800.8,3800.0,0.6336]
[1760171691934,2.63089282,3801.0,3799.8,2.63170799]
[1760171691935,0.099,3801.2,3799.9,3.26520591]
[1760171692231,2.63051969,3801.6,3796.4,1.23]
[1760171692232,2.63054057,3801.5,3800.6,0.6336]
[1760171692743,1.92,3801.6,3800.8,0.6336]
[1760171692744,2.6304818,3801.6,3800.8,0.6336]
[1760171692938,2.63055849,3801.5,3800.9,0.02630955]
[1760171693460,2.63024435,3802.0,3800.9,0.65990955]
[1760171693644,2.63024457,3803.4,3801.0,0.6336]
[1760171693645,0.325,3802.2,3801.0,0.6336]
[1760171693846,2.63033043,3801.9,3801.1,0.02386946]
[1760171694048,2.630339,3801.8,3801.1,0.02386946]
[1760171694245,2.63041057,3801.7,3801.1,0.02386946]
[1760171694931,2.63041057,3801.7,3801.0,0.02386946]
[1760171695137,2.63035042,3801.8,3801.0,0.02386946]
[1760171695334,2.63042904,3801.7,3801.0,0.02386946]
[1760171695859,0.001,3801.2,3801.0,0.02386946]
[1760171696157,0.001,3801.2,3800.7,0.6336]
[1760171696526,0.001,3801.2,3800.3,3.26490912]
[1760171696721,0.001,3801.2,3800.3,3.26496507]
[1760171696947,2.63081739,3801.1,3800.2,0.6336]
[1760171697127,0.001,3801.2,3800.0,0.002]
[1760171697333,2.63102504,3800.8,3800.0,0.002]
[1760171697538,0.099,3801.0,3800.0,0.6356]
[1760171697733,0.099,3801.0,3800.2,0.6336]
[1760171697935,2.63082027,3801.1,3800.9,0.1312]
[1760171698255,0.001,3801.2,3800.9,0.1312]
[1760171698256,2.7298866,3801.0,3800.9,0.1312]
[1760171698430,2.6310854,3800.8,3800.0,0.6356]
[1760171698630,4.5508866,3801.0,3800.9,0.1312]
[1760171698834,2.63117151,3800.6,3800.0,0.002]
[1760171699230,2.63117151,3800.6,3800.5,0.7648]
[1760171699425,1.92,3800.9,3800.6,0.6336]
[1760171699660,0.001,3801.2,3800.8,0.6336]
[1760171700179,0.001,3801.2,3801.0,0.6336]
[1760171700665,0.001,3801.2,3800.0,0.002]
[1760171700666,1.92,3800.9,3800.0,3.26715704]
[1760171700966,2.0203,3801.1,3800.0,0.6356]
[1760171701260,0.001,3801.2,3800.4,3.26484707]
[1760171701443,1.92,3800.9,3800.5,0.02631232]
[1760171701758,0.1003,3800.9,3800.5,0.02631232]
[1760171701947,0.1003,3800.8,3800.0,0.6356]
[1760171702353,0.001,3801.2,3800.0,0.6356]
[1760171702554,0.1003,3801.1,3800.2,0.6336]
[1760171702752,1.92,3801.0,3800.2,3.26503007]
[1760171702963,2.63098565,3800.9,3800.0,0.6356]
[1760171703164,2.0203,3801.1,3800.0,0.6356]
[1760171703477,2.63098501,3800.9,3800.0,0.6356]
[1760171703785,2.63175498,3801.2,3800.2,0.6336]
[1760171703786,0.001,3801.2,3800.2,0.6336]
[1760171703959,0.001,3801.2,3800.7,0.6336]
[1760171704162,0.001,3801.2,3800.7,3.26468872]
[1760171704477,0.001,3801.2,3800.7,0.6336]
[1760171704692,0.1003,3801.1,3800.4,0.6336]
[1760171704903,0.1003,3801.1,3800.5,0.02631232]
[1760171705080,0.1003,3801.1,3800.0,0.002]
[1760171705081,2.63106322,3800.8,3800.0,0.002]
[1760171705456,0.1003,3800.7,3800.0,0.002]
[1760171705980,0.001,3801.2,3800.3,0.6336]
[1760171706150,0.001,3801.2,3800.6,0.6336]
[1760171706360,0.001,3801.2,3800.8,0.6336]
[1760171706566,0.001,3801.2,3800.9,0.6336]
[1760171706879,0.001,3801.2,3800.3,0.4439]
[1760171706880,1.92,3801.1,3800.4,0.6336]
[1760171707075,0.1013,3801.2,3800.4,0.6336]
[1760171707465,0.1013,3801.2,3800.3,0.6336]
[1760171707666,2.73206669,3801.2,3800.3,0.6336]
[1760171708071,2.73206669,3801.2,3800.4,0.6336]
[1760171708266,0.1013,3801.2,3800.4,3.26489541]
[1760171708467,0.1013,3801.2,3800.2,3.26498851]
[1760171708892,2.0213,3801.2,3799.8,0.6336]
[1760171709200,1.92,3801.0,3800.0,0.6356]
[1760171709370,0.001,3801.2,3800.0,0.6356]
[1760171709371,2.63109427,3800.7,3800.0,0.6356]
[1760171709685,2.63104314,3800.8,3800.7,0.6336]
[1760171709870,2.73134314,3800.8,3800.7,0.6336]
[1760171710393,4.55109427,3800.7,3800.6,0.1312]
[1760171710564,4.65139427,3800.7,3800.6,0.1312]
[1760171710765,0.001,3801.2,3800.7,0.6336]
[1760171711065,1.92,3801.1,3800.8,0.02631024]
[1760171711258,0.001,3801.2,3801.1,0.7648]
[1760171712769,0.001,3801.2,3801.1,3.42192556]
[1760171713308,0.001,3801.2,3801.1,0.7648]
[1760171713466,2.73324818,3801.2,3801.1,0.1312]
[1760171714359,4.65324818,3801.2,3801.1,0.1312]
[1760171715360,1.921,3801.2,3801.1,0.1312]
[1760171715808,1.921,3801.2,3801.1,0.7648]
[1760171715972,1.921,3801.2,3801.1,3.39561739]
[1760171715973,0.001,3801.2,3801.1,3.39561739]
[1760171716165,0.001,3801.2,3801.1,3.83951739]
[1760171718003,0.001,3801.2,3801.1,3.84891739]
[1760171721000,0.001,3801.2,3801.1,5.76891739]
[1760171721373,0.001,3801.6,3801.5,3.26414057]
[1760171721907,0.001,3801.6,3801.5,5.76864057]
[1760171723215,0.001,3803.4,3803.0,0.6336]
[1760171723361,0.001,3803.4,3803.3,2.62929561]
[1760171723560,0.001,3803.4,3803.3,3.39409561]
[1760171723767,0.001,3803.4,3803.3,1.2181]
[1760171724172,0.001,3803.4,3803.3,0.7648]
[1760171724873,0.001,3803.4,3803.3,3.39409561]
[1760171725074,0.001,3803.4,3803.3,0.7648]
[1760171726297,0.001,3803.4,3803.3,3.39409561]
[1760171726484,0.001,3803.4,3803.3,0.7648]
[1760171726674,0.001,3803.4,3803.3,3.84739561]
[1760171732729,0.001,3803.4,3803.3,0.7648]
[1760171733030,0.001,3803.4,3803.3,0.1312]
[1760171733239,0.001,3803.4,3803.3,3.26289561]
[1760171733391,0.001,3803.4,3803.3,3.84739561]
[1760171735024,0.001,3803.4,3803.3,1.2181]
[1760171735390,0.001,3803.4,3803.3,0.7648]
[1760171735801,0.001,3803.4,3803.3,3.39409561]
[1760171736898,0.001,3803.4,3803.3,3.84739561]
[1760171738242,0.001,3803.4,3803.3,0.7648]
[1760171738394,0.001,3803.4,3802.3,3.08328126]
[1760171738725,0.001,3803.4,3802.3,0.4533]
[1760171739022,0.001,3803.4,3802.7,2.62970495]
[1760171739228,0.001,3803.4,3802.3,0.4533]
[1760171739723,0.001,3803.4,3803.3,3.26289561]
[1760171740119,0.001,3803.4,3803.3,3.71619561]
[1760171744729,0.001,3803.4,3803.3,3.08259561]
[1760171745226,0.001,3803.4,3803.3,3.71619561]
[1760171745846,0.001,3803.4,3803.3,4.05704704]
[1760171746000,0.001,3803.4,3803.3,5.97704704]
[1760171746512,0.001,3803.8,3803.7,5.18261911]
[1760171747005,0.001,3803.8,3803.7,5.63591911]
[1760171747541,0.001,3804.2,3804.1,5.18234267]
[1760171747739,0.001,3804.2,3804.1,5.41924267]
[1760171748035,0.001,3804.2,3804.1,5.87204267]
[1760171748396,0.001,3804.2,3804.1,6.00324267]
[1760171750144,0.001,3804.6,3804.5,5.18206628]
[1760171750349,0.001,3804.6,3804.5,5.63486628]
[1760171751634,0.001,3804.6,3804.5,4.54846628]
[1760171751933,0.001,3804.6,3804.1,0.2369]
[1760171751934,0.001,3804.6,3804.2,2.62863283]
[1760171752101,0.001,3804.6,3804.1,0.6697]
[1760171752102,0.001,3804.6,3804.5,2.62846628]
[1760171752299,0.001,3804.6,3804.1,0.2369]
[1760171752499,0.001,3804.6,3804.5,2.62846628]
[1760171752714,0.001,3804.6,3804.5,3.26206628]
[1760171752915,0.001,3804.6,3804.5,3.69486628]
[1760171755031,0.001,3804.6,3804.5,3.26206628]
[1760171755627,0.001,3804.6,3804.5,2.62846628]
[1760171755818,0.001,3804.6,3804.4,2.62853512]
[1760171756134,0.001,3804.6,3804.3,2.62860064]
[1760171756334,0.001,3804.6,3804.4,3.26211933]
[1760171756513,0.001,3804.6,3804.5,3.26206628]
[1760171757039,0.001,3804.6,3804.5,0.6336]
[1760171757235,0.001,3804.6,3804.5,3.26206628]
[1760171757435,0.001,3804.6,3804.5,0.6336]
[1760171757601,0.001,3804.6,3803.6,2.62908823]
[1760171758008,0.001,3804.6,3804.4,0.6336]
[1760171759335,0.001,3804.6,3804.5,0.6336]
[1760171759541,0.001,3804.6,3804.4,0.6336]
[1760171759921,0.001,3804.6,3804.4,3.2621288]
[1760171760109,0.001,3804.6,3804.5,3.39326628]
[1760171760849,0.001,3804.6,3804.5,3.41955094]
[1760171761051,0.001,3804.6,3804.5,3.85235094]
[1760171761209,0.001,3804.6,3804.5,3.41955094]
[1760171761410,0.001,3804.6,3804.5,3.39326628]
[1760171761812,0.001,3804.6,3804.5,3.82606628]
[1760171762054,0.001,3804.6,3804.5,3.39326628]
[1760171762646,0.001,3804.6,3804.5,3.41607041]
[1760171762861,0.001,3804.6,3804.5,3.71767041]
[1760171764472,0.001,3804.6,3804.5,3.69486628]
[1760171766566,0.001,3804.6,3804.5,4.02167742]
[1760171766862,0.001,3805.1,3805.0,5.18172089]
[1760171767237,0.001,3805.6,3805.4,0.6336]
[1760171767560,0.001,3805.6,3805.5,5.18137558]
[1760171767942,0.001,3805.6,3805.5,5.61417558]
[1760171769384,0.0995,3808.3,3805.8,3.26116844]
[1760171769675,0.001,3808.6,3806.1,0.6336]
[1760171769891,0.001,3808.6,3806.6,5.18061623]
[1760171770253,0.001,3808.6,3806.6,5.61341623]
[1760171772883,0.001,3808.6,3806.6,5.74461623]
[1760171774526,0.001,3808.6,3807.2,0.6336]
[1760171774730,0.001,3808.6,3808.5,0.6336]
[1760171774930,0.001,3808.6,3808.5,0.7648]
[1760171775230,0.001,3808.6,3808.5,3.39050565]
[1760171775738,0.001,3808.6,3808.5,0.7648]
[1760171776804,0.1018,3808.6,3808.5,0.1312]
[1760171777314,2.72743671,3808.6,3808.5,0.1312]
[1760171777716,0.1018,3808.6,3808.5,0.1312]
[1760171778428,0.001,3808.6,3808.5,0.7648]
[1760171779926,0.001,3808.6,3808.5,3.39050565]
[1760171780331,0.001,3808.6,3808.5,0.7648]
[1760171780514,0.001,3808.6,3808.5,3.39050565]
[1760171780831,0.001,3808.6,3808.5,0.7648]
[1760171781744,0.001,3808.6,3808.5,3.39050565]
[1760171782647,0.001,3808.6,3808.5,0.7648]
[1760171782944,0.1018,3808.6,3808.5,0.7648]
[1760171783441,0.1018,3808.6,3808.5,0.6336]
[1760171784258,0.001,3808.6,3808.5,0.6336]
[1760171784541,0.001,3808.6,3808.5,3.25930565]
[1760171785047,0.001,3808.6,3808.5,3.69570565]
[1760171788747,0.001,3808.6,3808.5,3.71957505]
[1760171788948,0.001,3808.6,3808.5,5.63957505]
[1760171789223,0.001,3809.0,3808.9,2.62542991]
[1760171789425,0.001,3809.0,3808.9,5.17902991]
[1760171789663,0.001,3809.3,3809.2,3.25882314]
[1760171789961,0.001,3809.3,3809.2,5.17882314]
[1760171790360,0.001,3809.3,3809.2,5.61522314]
[1760171792957,0.001,3809.3,3809.2,4.98162314]
[1760171793367,0.001,3809.3,3809.2,5.61522314]
[1760171793664,0.001,3809.3,3809.2,5.74642314]
[1760171793833,0.001,3809.3,3809.2,0.1312]
[1760171794033,0.001,3809.3,3809.2,2.62522314]
[1760171794231,0.001,3809.3,3808.2,0.4364]
[1760171794434,0.001,3809.3,3808.9,2.62539624]
[1760171794634,0.001,3809.3,3808.9,0.6336]
[1760171795027,0.001,3809.3,3808.2,0.4364]
[1760171795028,2.7252082,3809.3,3808.4,2.62574747]
[1760171795349,0.1,3809.3,3807.9,0.4364]
[1760171795554,2.6253468,3809.1,3808.1,2.62595898]
[1760171795733,2.6253468,3809.1,3808.2,2.62584427]
[1760171795937,2.6253468,3809.1,3808.1,2.62597697]
[1760171796161,0.001,3809.3,3807.0,1.1614528]
[1760171796162,0.099,3809.0,3807.2,0.4364]
[1760171796466,2.62557207,3808.7,3807.9,2.62607007]
[1760171796651,2.62577215,3808.5,3807.2,0.4364]
[1760171797162,2.62596827,3808.2,3807.2,2.62658333]
[1760171797331,2.62596827,3808.2,3806.8,0.4364]
[1760171797529,2.62596827,3808.2,3807.5,0.6336]
[1760171797765,2.62596827,3808.2,3807.4,2.62645936]
[1760171797766,2.62598842,3808.1,3806.9,2.62674564]
[1760171798078,2.62598842,3808.1,3807.0,2.62674021]
[1760171798231,2.62598842,3808.1,3806.8,0.4364]
[1760171798232,2.62598842,3808.1,3806.9,1.92]
[1760171798433,1.92,3808.8,3806.6,0.002]
[1760171798434,0.099,3808.0,3806.6,0.002]
[1760171798652,2.62611938,3807.9,3806.6,0.002]
[1760171798857,2.62645781,3807.5,3806.6,0.002]
[1760171799163,2.62632869,3807.6,3806.6,0.002]
[1760171799367,0.1002,3807.4,3806.6,0.002]
[1760171799566,1.92,3807.2,3806.6,0.002]
[1760171799863,0.1002,3807.4,3806.6,0.002]
[1760171800463,1.92,3807.3,3806.6,2.62901395]
[1760171800640,2.0202,3807.4,3806.7,0.65519853]
[1760171800843,0.1002,3807.4,3806.6,0.002]
[1760171801162,2.62666014,3807.2,3806.6,0.002]
[1760171801539,0.1002,3807.1,3806.6,0.002]
[1760171801764,2.62694722,3806.7,3806.6,0.002]
[1760171801968,1.92,3807.0,3806.6,0.002]
[1760171802164,2.72714722,3806.7,3806.6,0.002]
[1760171803153,0.1002,3806.7,3806.6,0.002]
[1760171804187,1.34206156,3810.2,3806.7,0.6336]
[1760171804188,0.1002,3807.3,3806.7,0.6336]
[1760171804684,1.92,3807.6,3807.2,0.1312]
[1760171804887,0.1002,3807.6,3807.3,0.6336]
[1760171805180,0.1002,3808.1,3807.5,0.1312]
[1760171805392,2.62591323,3808.2,3807.8,0.1312]
[1760171805688,0.099,3808.1,3807.5,0.6336]
[1760171806194,0.099,3808.1,3806.6,2.62896594]
[1760171806195,0.2233,3807.6,3806.6,0.002]
[1760171806353,1.92,3807.4,3806.6,0.002]
[1760171806554,2.62660063,3807.3,3806.6,0.002]
[1760171806754,2.62662529,3807.2,3806.6,0.002]
[1760171807192,2.62669027,3807.1,3806.6,0.002]
[1760171807411,0.099,3807.3,3806.7,0.6336]
[1760171807709,2.72555733,3807.3,3806.6,0.6356]
[1760171808030,0.2233,3807.6,3806.9,0.6336]
[1760171808315,0.2204,3807.9,3807.4,0.6336]
[1760171808677,0.2204,3807.9,3807.3,0.6336]
[1760171809121,1.92,3807.8,3807.1,0.6336]